bitfinex/quotes_SOLUSD_20250421
["timestamp","ask_amount","ask_price","bid_price","bid_amount"]
[1745233183242,0.03,139.92,139.88,1.6336]
[1745233183938,0.03,139.92,139.87,57.19853295]
[1745233183939,0.03,139.92,139.87,39.32479305]
[1745233184148,0.03,139.92,139.87,33.14929305]
[1745233185452,0.14216157,139.91,139.87,33.14929305]
[1745233186539,0.03,139.92,139.87,51.02303295]
[1745233190356,0.03,139.92,139.87,33.14929305]
[1745233190552,0.17216157,139.92,139.87,7.14929305]
[1745233196057,7.3192741,139.92,139.87,7.14929305]
[1745233197460,7.3192741,139.92,139.85,34.78380315]
[1745233200675,0.17216157,139.92,139.85,34.78380315]
[1745233200876,0.03,139.92,139.88,26.0]
[1745233201260,0.03,139.92,139.87,26.0]
[1745233202451,0.03,139.92,139.85,1.6336]
[1745233202760,91.26619138,139.92,139.82,8.80586611]
[1745233202967,18.79181043,139.9,139.82,34.80586611]
[1745233203279,0.14216157,139.9,139.85,26.0]
[1745233204355,0.14216157,139.9,139.82,26.6859977]
[1745233204552,0.14216157,139.9,139.84,26.0]
[1745233204865,0.14216157,139.9,139.84,33.1506206]
[1745233205257,0.14216157,139.9,139.85,2.60311742]
[1745233205853,0.14216157,139.9,139.86,2.60311742]
[1745233206254,0.14216157,139.9,139.84,33.1506206]
[1745233208960,7.29017867,139.9,139.84,33.1506206]
[1745233212676,7.29017867,139.9,139.84,7.1506206]
[1745233212977,0.14216157,139.88,139.84,7.1506206]
[1745233213683,0.14216157,139.88,139.83,7.15154115]
[1745233216584,0.14216157,139.9,139.83,7.15154115]
[1745233216961,0.14216157,139.9,139.82,26.063]
[1745233216962,27.44987326,139.9,139.82,26.063]
[1745233217166,18.79181043,139.88,139.82,0.063]
[1745233217560,0.14216157,139.86,139.82,0.063]
[1745233217767,18.79181043,139.86,139.82,0.063]
[1745233218174,33.15181043,139.86,139.82,0.063]
[1745233218375,18.79181043,139.84,139.82,0.063]
[1745233219559,7.29370272,139.83,139.82,0.063]
[1745233222285,0.14216157,139.83,139.82,0.063]
[1745233222595,18.64964886,139.84,139.82,0.063]
[1745233222958,80.8,139.85,139.82,0.063]
[1745233223361,0.14216157,139.84,139.82,0.063]
[1745233226471,0.14216157,139.85,139.82,0.063]
[1745233229501,18.64964886,139.89,139.82,6.5553]
[1745233230483,0.14216157,139.88,139.83,7.15154115]
[1745233233289,7.2911709,139.88,139.83,7.15154115]
[1745233234589,0.14216157,139.86,139.82,7.21481758]
[1745233235300,0.14216157,139.86,139.82,0.063]
[1745233236790,0.14216157,139.84,139.82,0.063]
[1745233238596,18.64964886,139.83,139.82,0.063]
[1745233238797,18.79181043,139.83,139.82,0.063]
[1745233240596,7.29370272,139.83,139.82,0.063]
[1745233240895,0.14216157,139.83,139.82,0.063]
[1745233248702,7.29370272,139.83,139.82,0.063]
[1745233249206,25.94335158,139.83,139.82,0.063]
[1745233255798,40.22181043,139.82,139.81,0.063]
[1745233256106,66.22181043,139.82,139.81,0.063]
[1745233257003,73.37386306,139.82,139.81,0.063]
[1745233261503,51.94386306,139.82,139.81,0.063]
[1745233263320,73.39386306,139.82,139.8,0.063]
[1745233266212,106.74437462,139.81,139.8,0.063]
[1745233268919,18.79181043,139.8,139.79,0.063]
[1745233269826,33.15181043,139.8,139.79,0.063]
[1745233271420,44.79181043,139.77,139.75,0.063]
[1745233273431,51.94642157,139.77,139.75,0.063]
[1745233275116,73.39642157,139.77,139.75,0.063]
[1745233278341,51.94642157,139.77,139.75,0.063]
[1745233283434,18.64964886,139.77,139.75,0.063]
[1745233283637,80.8,139.78,139.75,0.063]
[1745233283841,18.64964886,139.79,139.75,0.063]
[1745233284048,18.64964886,139.79,139.77,1.5262]
[1745233284839,0.14216157,139.78,139.77,1.5262]
[1745233285137,18.64964886,139.79,139.77,1.5262]
[1745233285340,0.14216157,139.78,139.77,1.5262]
[1745233291146,0.14216157,139.78,139.75,0.063]
[1745233292321,25.94597354,139.78,139.75,0.063]
[1745233298148,18.79181043,139.78,139.75,0.063]
[1745233298851,80.8,139.81,139.75,0.063]
[1745233299757,0.14216157,139.8,139.75,0.063]
[1745233300140,80.8,139.81,139.75,0.063]
[1745233300458,0.14216157,139.8,139.75,0.063]
[1745233304240,0.14216157,139.81,139.75,0.063]
[1745233304641,0.14216157,139.81,139.77,33.8787]
[1745233304869,0.03,139.84,139.77,33.8787]
[1745233305172,18.67964886,139.84,139.77,33.8787]
[1745233305351,0.14216157,139.83,139.77,33.8787]
[1745233306259,0.14216157,139.83,139.78,7.15409929]
[1745233311167,7.29376872,139.83,139.78,7.15409929]
[1745233312470,7.29376872,139.83,139.77,41.03315336]
[1745233314772,7.29376872,139.83,139.77,7.8787]
[1745233314945,0.14216157,139.81,139.76,0.063]
[1745233315655,0.14216157,139.81,139.76,7.21809495]
[1745233316872,0.14216157,139.79,139.76,0.063]
[1745233320854,0.14216157,139.78,139.76,0.063]
[1745233323577,7.29545847,139.8,139.76,0.063]
[1745233324859,0.14216157,139.78,139.76,0.063]
[1745233325558,25.94642157,139.77,139.76,0.063]
[1745233326271,18.79181043,139.77,139.76,0.063]
[1745233328982,25.94642157,139.77,139.76,0.063]
[1745233332486,40.30642157,139.77,139.76,0.063]
[1745233343494,40.16426,139.77,139.76,0.063]
[1745233343795,33.00964886,139.77,139.76,0.063]
[1745233343971,18.64964886,139.78,139.76,0.063]
[1745233344291,0.14216157,139.77,139.76,0.063]
[1745233344591,18.64964886,139.78,139.76,0.063]
[1745233345292,0.14216157,139.77,139.76,0.063]
[1745233348405,0.14216157,139.78,139.76,0.063]
[1745233348593,14.36,139.81,139.76,0.063]
[1745233348794,18.64964886,139.8,139.76,0.063]
[1745233349020,0.14216157,139.79,139.76,0.063]
[1745233355326,7.29576637,139.79,139.76,0.063]
[1745233355525,0.14216157,139.77,139.76,0.063]
[1745233356927,25.94642157,139.77,139.76,0.063]
[1745233357233,121.04181043,139.76,139.75,1e-08]
[1745233357397,135.38181043,139.76,139.75,1e-08]
[1745233358120,0.14216157,139.75,139.74,1e-08]
[1745233358312,0.14216157,139.75,139.68,0.063]
[1745233358313,66.24181043,139.73,139.68,0.063]
[1745233358517,99.59181043,139.72,139.68,0.063]
[1745233360232,106.74898191,139.72,139.68,0.063]
[1745233362908,25.94898191,139.72,139.68,0.063]
[1745233365962,18.79181043,139.71,139.68,0.063]
[1745233366438,44.79181043,139.71,139.68,0.063]
[1745233367537,51.9494942,139.71,139.68,0.063]
[1745233367746,51.9494942,139.71,139.7,1e-08]
[1745233369339,51.80733263,139.71,139.7,1e-08]
[1745233370038,25.80733263,139.71,139.7,1e-08]
[1745233370239,25.9494942,139.71,139.7,1e-08]
[1745233372446,7.15738617,139.72,139.7,1e-08]
[1745233372820,0.14216157,139.71,139.7,1e-08]
[1745233373027,7.15738617,139.72,139.7,1e-08]
[1745233373419,0.14216157,139.71,139.7,1e-08]
[1745233375342,7.29984534,139.71,139.7,1e-08]
[1745233381425,25.9494942,139.71,139.7,1e-08]
[1745233384446,18.64964886,139.74,139.7,1e-08]
[1745233384745,0.14216157,139.73,139.7,1e-08]
[1745233385446,7.29896473,139.73,139.7,1e-08]
[1745233388465,0.14216157,139.71,139.7,1e-08]
[1745233390959,7.29984534,139.71,139.7,1e-08]
[1745233391651,25.9494942,139.71,139.7,1e-08]
[1745233395465,47.3994942,139.71,139.7,1e-08]
[1745233395677,25.9494942,139.71,139.7,1e-08]
[1745233397177,25.80733263,139.71,139.7,1e-08]
[1745233397865,25.9494942,139.71,139.7,1e-08]
[1745233398065,25.80733263,139.71,139.7,1e-08]
[1745233398263,25.9494942,139.71,139.7,1e-08]
[1745233405550,18.79181043,139.71,139.7,1e-08]
[1745233405751,18.64964886,139.71,139.7,1e-08]
[1745233405979,25.80733263,139.71,139.7,1e-08]
[1745233406275,25.9494942,139.71,139.7,1e-08]
[1745233412377,44.79181043,139.7,139.69,1e-08]
[1745233414189,51.95000656,139.7,139.69,1e-08]
[1745233415568,73.40000656,139.7,139.69,1e-08]
[1745233417790,51.95000656,139.7,139.69,1e-08]
[1745233417996,25.80784499,139.7,139.69,1e-08]
[1745233418371,18.64964886,139.7,139.69,1e-08]
[1745233418591,7.15819613,139.7,139.69,1e-08]
[1745233419293,7.3003577,139.7,139.69,1e-08]
[1745233423093,25.95000656,139.7,139.69,1e-08]
[1745233435800,47.40000656,139.7,139.69,1e-08]
[1745233436097,25.95000656,139.7,139.69,1e-08]
[1745233441308,18.79181043,139.69,139.68,0.063]
[1745233442517,25.95051899,139.69,139.68,0.063]
[1745233444305,25.80835742,139.69,139.68,0.063]
[1745233444806,25.95051899,139.69,139.68,0.063]
[1745233466221,47.40051899,139.69,139.68,0.063]
[1745233467220,147.04181043,139.68,139.67,1e-08]
[1745233468623,128.2010315,139.68,139.67,1e-08]
[1745233468923,47.4010315,139.68,139.67,1e-08]
[1745233474125,73.4010315,139.68,139.67,1e-08]
[1745233478302,51.9510315,139.68,139.67,1e-08]
[1745233478999,25.80886993,139.68,139.67,1e-08]
[1745233479411,25.9510315,139.68,139.67,1e-08]
[1745233479617,18.79181043,139.68,139.67,1e-08]
[1745233479804,25.9510315,139.68,139.67,1e-08]
[1745233480326,25.80886993,139.68,139.67,1e-08]
[1745233480526,25.9510315,139.68,139.67,1e-08]
[1745233480732,18.79181043,139.68,139.67,1e-08]
[1745233481024,18.64964886,139.68,139.67,1e-08]
[1745233481231,18.79181043,139.68,139.67,1e-08]
[1745233481730,25.9510315,139.68,139.67,1e-08]
[1745233483120,18.79181043,139.68,139.67,1e-08]
[1745233486640,25.9510315,139.68,139.67,1e-08]
[1745233488445,18.79181043,139.68,139.67,1e-08]
[1745233490645,14.34,139.7,139.67,1e-08]
[1745233490940,18.64964886,139.69,139.67,1e-08]
[1745233491124,0.14216157,139.68,139.67,1e-08]
[1745233498245,7.30138264,139.68,139.67,1e-08]
[1745233498419,25.9510315,139.68,139.67,1e-08]
[1745233501547,0.14216157,139.66,139.64,0.063]
[1745233502147,33.13181043,139.65,139.64,0.063]
[1745233502346,66.29256947,139.65,139.64,0.063]
[1745233505436,40.29256947,139.65,139.64,0.063]
[1745233510261,18.79181043,139.64,139.63,0.063]
[1745233510753,44.79181043,139.64,139.63,1e-08]
[1745233511353,44.79181043,139.64,139.61,0.063]
[1745233511354,44.79181043,139.62,139.61,0.063]
[1745233511552,51.95410809,139.62,139.61,0.063]
[1745233513268,99.59181043,139.61,139.58,0.063]
[1745233513439,51.95564738,139.59,139.58,0.063]
[1745233515263,25.95564738,139.59,139.58,0.063]
[1745233515864,80.8,139.63,139.58,1.7048]
[1745233516169,18.64964886,139.62,139.58,1.7048]
[1745233516341,0.14216157,139.61,139.58,1.7048]
[1745233516744,25.81203204,139.62,139.58,7.7092]
[1745233517359,0.14216157,139.61,139.58,7.7092]
[1745233520371,7.30525654,139.61,139.58,7.7092]
[1745233523594,0.14216157,139.59,139.58,7.7092]
[1745233526076,7.30599852,139.59,139.58,7.7092]
[1745233526281,25.95564738,139.59,139.58,7.7092]
[1745233526461,25.95564738,139.59,139.58,0.063]
[1745233527363,47.40564738,139.59,139.58,0.063]
[1745233527571,25.95564738,139.59,139.58,0.063]
[1745233529284,51.95564738,139.59,139.58,0.063]
[1745233529478,18.79181043,139.57,139.56,0.063]
[1745233529785,44.79181043,139.57,139.56,0.063]
[1745233532388,51.95667393,139.57,139.56,0.063]
[1745233536093,51.95667393,139.57,139.55,0.063]
[1745233536094,18.79181043,139.56,139.55,0.063]
[1745233537001,25.95718732,139.56,139.55,0.063]
[1745233541580,25.81502575,139.56,139.55,0.063]
[1745233541977,25.95718732,139.56,139.55,0.063]
[1745233542476,18.64964886,139.56,139.55,0.063]
[1745233542676,102.30444399,139.58,139.55,0.063]
[1745233542908,18.64964886,139.57,139.55,6.4084]
[1745233543289,0.14216157,139.56,139.55,6.4084]
[1745233543981,18.64964886,139.57,139.55,6.4084]
[1745233544376,0.14216157,139.56,139.55,6.4084]
[1745233545080,80.8,139.58,139.56,1.5545]
[1745233545404,0.14216157,139.57,139.56,1.5545]
[1745233545784,0.14216157,139.57,139.56,8.71987689]
[1745233546201,14.34,139.61,139.56,8.71987689]
[1745233546202,21.50297223,139.61,139.56,8.71987689]
[1745233546500,18.64964886,139.6,139.56,8.71987689]
[1745233546688,14.34,139.61,139.56,8.71987689]
[1745233548004,0.14216157,139.6,139.56,8.71987689]
[1745233549313,0.14216157,139.63,139.56,26.63331913]
[1745233549607,18.64964886,139.63,139.57,6.0668]
[1745233549782,80.8,139.64,139.57,6.0668]
[1745233550114,18.64964886,139.64,139.58,1.5545]
[1745233550485,0.14216157,139.63,139.58,1.5545]
[1745233550805,0.14216157,139.63,139.59,7.16383695]
[1745233550991,14.34,139.65,139.59,7.16383695]
[1745233551176,21.50079543,139.65,139.59,7.16383695]
[1745233551375,0.14216157,139.64,139.59,7.16383695]
[1745233554008,7.30351306,139.64,139.59,7.16383695]
[1745233556996,7.30351306,139.64,139.58,1.5545]
[1745233557201,18.64964886,139.63,139.58,1.5545]
[1745233557509,18.64964886,139.63,139.58,8.71883955]
[1745233557723,7.30351306,139.64,139.58,8.71883955]
[1745233558008,0.14216157,139.63,139.58,8.71883955]
[1745233558581,18.79181043,139.63,139.58,1.5545]
[1745233558990,7.16229766,139.62,139.58,1.5545]
[1745233562396,18.79181043,139.61,139.58,1.5545]
[1745233562594,18.79181043,139.61,139.57,6.0668]
[1745233563720,7.16332378,139.6,139.55,26.063]
[1745233564014,7.16332378,139.6,139.55,33.22876231]
[1745233564393,0.14216157,139.6,139.55,33.22876231]
[1745233566112,7.30559243,139.6,139.55,33.22883137]
[1745233566717,7.16261312,139.62,139.55,33.22883137]
[1745233567221,0.14216157,139.61,139.55,33.22883137]
[1745233568119,0.14216157,139.6,139.55,33.22883137]
[1745233571117,21.50099827,139.65,139.55,131.84355727]
[1745233571317,18.64964886,139.64,139.56,7.7472]
[1745233571613,0.14216157,139.63,139.57,26.0]
[1745233573132,0.14216157,139.63,139.58,7.16435019]
[1745233574035,7.30399198,139.63,139.56,7.7472]
[1745233575046,0.14216157,139.63,139.56,32.82578179]
[1745233575414,14.34,139.65,139.59,26.0]
[1745233575736,18.64964886,139.66,139.59,26.0]
[1745233576238,0.14216157,139.65,139.59,26.0]
[1745233576434,7.15997813,139.67,139.59,26.0]
[1745233576635,18.64964886,139.67,139.6,7.7472]
[1745233577328,26.063,139.68,139.61,7.16281068]
[1745233577329,33.22238557,139.68,139.61,7.16281068]
[1745233577529,0.14216157,139.67,139.61,7.16281068]
[1745233577837,33.22238557,139.68,139.61,7.16281068]
[1745233578043,0.14216157,139.66,139.61,7.16281068]
[1745233583752,0.14216157,139.67,139.61,25.06983739]
[1745233588752,0.063,139.68,139.61,105.76983739]
[1745233588933,0.063,139.68,139.65,7.7472]
[1745233589428,0.063,139.68,139.66,7.16024631]
[1745233594654,0.063,139.7,139.67,26.0]
[1745233598878,0.063,139.7,139.66,80.7]
[1745233599871,0.063,139.7,139.66,87.86009727]
[1745233600059,0.063,139.7,139.66,80.7]
[1745233600380,0.063,139.7,139.65,40.90771161]
[1745233600961,0.20516157,139.7,139.65,40.90771161]
[1745233601575,0.063,139.7,139.65,44.5070252]
[1745233601880,0.063,139.7,139.68,26.0]
[1745233603376,0.063,139.7,139.68,33.15894631]
[1745233603569,0.063,139.7,139.66,26.0]
[1745233604683,0.063,139.7,139.66,33.16024631]
[1745233610586,0.063,139.7,139.66,26.0]
[1745233610883,0.063,139.7,139.65,7.16051625]
[1745233611582,0.14216157,139.68,139.63,80.7]
[1745233612687,7.30151442,139.68,139.63,87.86175339]
[1745233613489,0.14216157,139.68,139.63,87.86175339]
[1745233613991,0.14216157,139.67,139.63,87.86175339]
[1745233614193,0.14216157,139.67,139.63,7.16175339]
[1745233614892,7.30195515,139.67,139.63,7.16175339]
[1745233615189,7.30195515,139.67,139.62,33.16209529]
[1745233615395,7.30195515,139.67,139.62,26.0]
[1745233616799,7.30195515,139.67,139.62,33.16224173]
[1745233620484,0.063,139.7,139.62,33.16224173]
[1745233620797,0.20516157,139.7,139.62,33.16224173]
[1745233621804,0.063,139.7,139.63,1.6595]
[1745233622493,0.20516157,139.7,139.63,1.6595]
[1745233622686,0.063,139.7,139.64,7.16127184]
[1745233622883,0.063,139.7,139.64,25.06445144]
[1745233628302,0.063,139.7,139.64,7.16127184]
[1745233629004,18.71264886,139.7,139.64,7.16127184]
[1745233629299,0.14216157,139.69,139.63,87.86177998]
[1745233630701,0.14216157,139.67,139.63,87.86177998]
[1745233631002,0.14216157,139.67,139.63,7.16177998]
[1745233638190,0.14216157,139.67,139.63,6.66177998]
[1745233640193,7.1597687,139.67,139.63,6.66177998]
[1745233641002,7.30087013,139.69,139.63,6.66177998]
[1745233660413,0.14216157,139.66,139.62,33.16211035]
[1745233661104,0.14216157,139.66,139.62,26.0]
[1745233661502,0.14216157,139.66,139.62,33.1621792]
[1745233664611,7.30161321,139.68,139.62,33.1621792]
[1745233668118,7.30161321,139.68,139.62,26.0]
[1745233668420,0.14216157,139.66,139.62,26.0]
[1745233669312,0.14216157,139.66,139.62,33.16214291]
[1745233669929,25.80859491,139.69,139.62,33.16214291]
[1745233670117,0.14216157,139.68,139.62,33.16214291]
[1745233671599,0.063,139.7,139.62,51.06788707]
[1745233671928,0.20516157,139.7,139.62,131.76788707]
[1745233672828,7.36353774,139.7,139.62,131.76788707]
[1745233676331,0.063,139.7,139.62,131.76788707]
[1745233687123,95.13,139.76,139.63,18.64964886]
[1745233687333,95.13,139.76,139.63,99.34964886]
[1745233688234,17.89036782,139.74,139.64,7.16127184]
[1745233689043,0.14216157,139.73,139.64,7.16127184]
[1745233689249,0.14216157,139.73,139.64,87.86127184]
[1745233689450,0.14216157,139.73,139.64,107.27025144]
[1745233689933,0.14216157,139.73,139.67,26.0]
[1745233690335,7.29932212,139.73,139.67,33.1592775]
[1745233690732,80.83,139.76,139.68,1.5058]
[1745233690949,0.03,139.76,139.68,1.5058]
[1745233691351,0.17216157,139.76,139.68,1.5058]
[1745233691549,0.03,139.76,139.68,1.5058]
[1745233691743,7.18537113,139.76,139.69,7.15870856]
[1745233692221,0.14216157,139.75,139.69,7.15870856]
[1745233693250,7.29797335,139.75,139.68,8.66480584]
[1745233693428,7.29797335,139.75,139.68,27.5058]
[1745233693743,7.29797335,139.75,139.67,7.15958891]
[1745233694653,25.187061,139.75,139.67,7.15958891]
[1745233698349,7.29797335,139.75,139.67,7.15958891]
[1745233704059,7.18529328,139.76,139.67,25.05892305]
[1745233704544,0.14216157,139.75,139.67,25.05892305]
[1745233706060,0.14216157,139.75,139.68,1.6488]
[1745233706360,0.17216157,139.76,139.68,1.6488]
[1745233707060,7.32731172,139.76,139.69,7.15870856]
[1745233717983,7.32731172,139.76,139.68,8.80779914]
[1745233719789,25.21511939,139.76,139.68,8.80779914]
[1745233723892,7.2983087,139.74,139.68,1.6488]
[1745233725093,7.2983087,139.74,139.68,8.80796485]
[1745233732086,7.29804503,139.75,139.68,8.80796485]
[1745233739984,7.29804503,139.75,139.68,1.6488]
[1745233740502,25.18713268,139.75,139.68,1.6488]
[1745233741714,25.18713268,139.75,139.68,8.80787114]
[1745233743484,7.29804503,139.75,139.68,8.80787114]
[1745233747718,25.18713268,139.75,139.68,8.80787114]
[1745233748730,25.18713268,139.75,139.68,1.6488]
[1745233749214,25.18713268,139.75,139.68,8.8079557]
[1745233750117,25.18713268,139.75,139.68,1.6488]
[1745233752492,25.18713268,139.75,139.68,8.80795955]
[1745233752903,7.29804503,139.75,139.68,8.80795955]
[1745233753218,7.18531195,139.76,139.68,8.80795955]
[1745233753415,7.18531195,139.76,139.69,6.1593]
[1745233754317,0.14216157,139.74,139.7,7.15819613]
[1745233755917,7.29831372,139.74,139.69,6.1593]
[1745233759309,0.14216157,139.72,139.66,26.0]
[1745233760117,7.15768377,139.71,139.67,26.0]
[1745233763448,7.15768377,139.71,139.65,33.16065418]
[1745233764924,7.15768377,139.71,139.65,7.16065418]
[1745233766650,7.30069834,139.7,139.64,121.55591794]
[1745233766950,0.14216157,139.69,139.64,121.55591794]
[1745233767124,0.14216157,139.69,139.64,40.85591794]
[1745233767843,7.30087281,139.69,139.64,40.85591794]
[1745233773756,7.15840796,139.7,139.64,40.85591794]
[1745233773959,7.15665927,139.73,139.64,40.85591794]
[1745233774256,7.15665927,139.73,139.64,139.45909754]
[1745233775361,0.14216157,139.72,139.64,139.45909754]
[1745233776442,0.14216157,139.72,139.65,18.64964886]
[1745233777455,0.14216157,139.72,139.66,7.16024631]
[1745233780557,7.15720934,139.72,139.66,7.16024631]
[1745233780760,0.14216157,139.71,139.66,7.16024631]
[1745233781676,0.14216157,139.71,139.65,7.16075904]
[1745233782259,0.14216157,139.71,139.65,87.86075904]
[1745233791465,0.14216157,139.71,139.65,105.76265664]
[1745233792367,25.04574682,139.75,139.65,105.76265664]
[1745233792673,0.14216157,139.74,139.65,105.76265664]
[1745233793784,7.15665927,139.73,139.65,105.76265664]
[1745233794376,0.14216157,139.72,139.65,87.86075904]
[1745233794562,0.14216157,139.72,139.65,7.16075904]
[1745233795672,7.15768377,139.71,139.65,7.16075904]
[1745233801184,0.14216157,139.69,139.64,40.85590278]
[1745233801767,0.14216157,139.69,139.64,14.85590278]
[1745233802294,7.30094825,139.69,139.64,14.85590278]
[1745233803787,0.14216157,139.69,139.64,14.85590278]
[1745233806088,7.30090179,139.69,139.64,14.85590278]
[1745233806275,0.14216157,139.68,139.64,14.85590278]
[1745233809095,0.14216157,139.68,139.63,87.86169725]
[1745233809096,0.14216157,139.67,139.63,87.86169725]
[1745233811195,7.15973766,139.67,139.63,87.86169725]
[1745233811588,7.15973766,139.67,139.63,7.16169725]
[1745233813281,0.14216157,139.66,139.63,7.16169725]
[1745233813489,0.14216157,139.66,139.62,33.19210543]
[1745233815599,0.14216157,139.66,139.62,0.03]
[1745233815600,0.14216157,139.65,139.62,0.03]
[1745233816704,7.30321985,139.65,139.62,0.03]
[1745233825111,0.14216157,139.63,139.62,0.03]
[1745233827320,7.16097594,139.65,139.62,0.03]
[1745233827499,0.14216157,139.64,139.62,0.03]
[1745233827701,7.3025775,139.66,139.62,0.03]
[1745233833799,0.14216157,139.67,139.62,0.03]
[1745233834008,14.28,139.68,139.63,32.447]
[1745233834203,0.14216157,139.68,139.63,32.447]
[1745233835019,7.15843308,139.7,139.63,32.447]
[1745233835327,0.14216157,139.69,139.63,32.447]
[1745233835827,7.30098183,139.69,139.64,7.16127184]
[1745233836024,7.30098183,139.69,139.63,39.60858836]
[1745233836227,7.30098183,139.69,139.63,6.447]
[1745233836528,25.95063069,139.69,139.62,0.03]
[1745233837107,25.95063069,139.69,139.62,7.19224875]
[1745233839429,43.84740211,139.69,139.62,0.03]
[1745233840422,0.14216157,139.67,139.62,0.03]
[1745233842333,0.14216157,139.65,139.62,0.03]
[1745233844638,0.14216157,139.64,139.62,0.03]
[1745233847440,7.30346759,139.64,139.62,0.03]
[1745233847627,0.14216157,139.63,139.62,0.03]
[1745233858932,7.30394628,139.63,139.62,0.03]
[1745233859254,0.14216157,139.63,139.62,0.03]
[1745233860432,0.14216157,139.63,139.59,32.91388378]
[1745233861753,7.16093063,139.65,139.59,32.91388378]
[1745233861958,0.14216157,139.64,139.59,32.91388378]
[1745233862544,0.14216157,139.65,139.59,32.91388378]
[1745233862747,0.14216157,139.65,139.59,50.82347615]
[1745233862948,7.15998652,139.67,139.59,131.52347615]
[1745233863139,7.15922107,139.68,139.59,131.52347615]
[1745233863350,0.14216157,139.67,139.59,131.52347615]
[1745233864650,7.30214056,139.67,139.59,131.52347615]
[1745233866435,25.95178942,139.67,139.59,32.91388378]
[1745233867257,25.95178942,139.67,139.58,7.6728]
[1745233867258,0.14216157,139.65,139.58,14.83702237]
[1745233868256,7.16127184,139.64,139.58,14.83702237]
[1745233869565,0.14216157,139.62,139.58,7.6728]
[1745233871363,7.30463617,139.62,139.58,7.6728]
[1745233871663,7.30463617,139.62,139.58,0.03]
[1745233873248,25.21038033,139.62,139.58,0.03]
[1745233874166,0.14216157,139.6,139.58,0.03]
[1745233876057,7.30599852,139.59,139.58,0.03]
[1745233878889,18.64964886,139.63,139.58,0.03]
[1745233879367,0.14216157,139.62,139.58,0.03]
[1745233879973,7.16281068,139.61,139.58,0.03]
[1745233881086,7.30470222,139.62,139.58,0.03]
[1745233884766,7.30418031,139.63,139.58,0.03]
[1745233885770,0.14216157,139.63,139.58,0.03]
[1745233885963,7.16156872,139.64,139.58,0.03]
[1745233886160,0.14216157,139.63,139.58,0.03]
[1745233886772,0.14216157,139.63,139.58,7.19435019]
[1745233888085,7.30396331,139.63,139.58,7.19435019]
[1745233889885,7.3036698,139.64,139.58,7.19435019]
[1745233897294,7.16075904,139.65,139.58,13.75655019]
[1745233897479,0.14216157,139.64,139.58,13.75655019]
[1745233898287,18.79181043,139.64,139.58,6.5922]
[1745233899375,0.14216157,139.62,139.58,6.5922]
[1745233902176,0.14216157,139.61,139.58,6.5922]
[1745233903268,0.14216157,139.61,139.58,0.03]
[1745233904187,0.14216157,139.59,139.58,0.03]
[1745233905397,7.30599852,139.59,139.58,0.03]
[1745233908279,25.95564738,139.59,139.58,0.03]
[1745233909393,7.30599852,139.59,139.58,0.03]
[1745233909978,0.14216157,139.6,139.58,0.03]
[1745233910177,14.26,139.61,139.58,0.03]
[1745233911395,0.14216157,139.6,139.58,0.03]
[1745233912078,7.16178471,139.63,139.58,0.03]
[1745233912277,0.14216157,139.62,139.58,0.03]
[1745233913201,7.30485456,139.62,139.58,0.03]
[1745233920382,18.64964886,139.61,139.58,0.03]
[1745233920599,0.14216157,139.6,139.58,0.03]
[1745233922203,7.30599852,139.59,139.58,0.03]
[1745233923409,0.14216157,139.59,139.58,0.03]
[1745233924713,7.30599852,139.59,139.58,0.03]
[1745233925890,25.95564738,139.59,139.58,0.03]
[1745233930114,122.54111043,139.58,139.56,0.03]
[1745233930324,44.79181043,139.55,139.53,1e-08]
[1745233930523,44.79181043,139.55,139.52,0.03]
[1745233930524,18.79181043,139.53,139.52,1e-08]
[1745233930823,20.27111043,139.53,139.52,1e-08]
[1745233931317,20.27111043,139.53,139.48,0.03]
[1745233931318,18.64964886,139.51,139.5,1e-08]
[1745233931489,18.79181043,139.51,139.5,1e-08]
[1745233932316,25.95975538,139.51,139.5,1e-08]
[1745233940436,0.14216157,139.5,139.49,1e-08]
[1745233940615,25.96026921,139.5,139.49,1e-08]
[1745233941332,18.79181043,139.49,139.48,1e-08]
[1745233941636,33.05181043,139.49,139.48,1e-08]
[1745233942639,40.22078311,139.49,139.48,1e-08]